{"text_format":"1","workbook":"xlsx","n_sheets":7,"sheets":["Реестр","Участие в проекте","Данные за 2021 г","Кто рисует","Лист1","Лист2","Лист3"],"not_rendered":{"charts":0,"images":0,"macros":1,"external_links":0,"defined_names":9,"comments":0,"pivot_tables":0},"unopened":[],"bounds":{"document_bytes":16777216,"sheet_cells":100000,"rows_first":2000,"rows_last":500,"rows_between":2000,"halvings":0,"cell_chars":16384,"cell_head_chars":4096},"cells_cut":0,"cells_raw":0,"read":"whole","date_system":"1900"}

{"sheet":"Реестр","index":0,"n_rows":623,"n_cols":5,"rows_kept":623,"cut":false,"hidden":false,"merged":[]}
[" SAP завода","Кластер","Территория","Дата поступления","Статус"]
["30DE","Кластер Волга-Север 22 Семеновский","ВС-3","2021-02-17","На согласовании"]
["395U","Кластер Волга-Север 10 Киров","ВС-2","2020-12-01","Отказ"]
["320J","Кластер Волга-Север 02 Вологда","ВС-1","2020-12-01","В ожидании"]
["320J","Кластер Волга-Север 02 Вологда","ВС-1","2020-12-01","В ожидании"]
[8352,"Кластер Волга-Север 02 Вологда","ВС-1","2020-12-01","Готово"]
["E543","Кластер Волга-Север 02 Вологда","ВС-1","2020-12-01","На согласовании"]
["E543","Кластер Волга-Север 02 Вологда","ВС-1","2020-12-01","На согласовании"]
["E543","Кластер Волга-Север 02 Вологда","ВС-1","2020-12-01","На согласовании"]
["H876","Кластер Волга-Север 02 Вологда","ВС-1","2020-12-01","В ожидании"]
["J326","Кластер Волга-Север 02 Вологда","ВС-1","2020-12-01","Готово"]
["S404","Кластер Волга-Север 02 Вологда","ВС-1","2020-12-01","В ожидании"]
["S404","Кластер Волга-Север 02 Вологда","ВС-1","2020-12-01","В ожидании"]
["S404","Кластер Волга-Север 02 Вологда","ВС-1","2020-12-01","В ожидании"]
["S404","Кластер Волга-Север 02 Вологда","ВС-1","2020-12-01","В ожидании"]
["S404","Кластер Волга-Север 02 Вологда","ВС-1","2020-12-01","В ожидании"]
[3429,"Кластер Волга-Север 02 Вологда","ВС-1","2020-12-01","На согласовании"]
["31L6","Кластер Волга-Север 01 Ярославль-Север","ВС-1","2021-03-03","На согласовании"]
[4052,"Кластер Волга-Север 21 Кстово","ВС-3","2021-03-03","Отказ"]
["J086","Кластер Волга-Север 21 Кстово","ВС-3","2021-03-03","На согласовании"]
["Q591","Кластер Волга-Север 21 Кстово","ВС-3","2021-03-03","Готово"]
["J069","Кластер Волга-Север 02 Вологда","ВС-1","2021-03-03","На согласовании"]
["Y893","Кластер Волга-Север 02 Вологда","ВС-1","2021-03-03","На согласовании"]
["Y914","Кластер Волга-Север 02 Вологда","ВС-1","2021-03-03","Отказ"]
["J759","Кластер Волга-Север 02 Вологда","ВС-1","2021-03-03","На согласовании"]
["J767","Кластер Волга-Север 02 Вологда","ВС-1","2021-03-03","На согласовании"]
["30TX","Кластер Волга-Север 09 Ярославль-Юг","ВС-1","2021-03-04","В ожидании"]
["30TX","Кластер Волга-Север 09 Ярославль-Юг","ВС-1","2021-03-04","В работе"]
["30TX","Кластер Волга-Север 09 Ярославль-Юг","ВС-1","2021-03-04","В работе"]
[6742,"Кластер Волга-Север 20 Арзамас","ВС-3","2021-03-04","На согласовании"]
["X524","Кластер Волга-Север 10 Киров","ВС-2","2021-03-04","В работе"]
[3536,"Кластер Волга-Север 23 Нижний Новгород Сормовский","ВС-3","2021-03-04","На согласовании"]
[3565,"Кластер Волга-Север 23 Нижний Новгород Сормовский","ВС-3","2021-03-04","Готово"]
[4016,"Кластер Волга-Север 23 Нижний Новгород Сормовский","ВС-3","2021-03-04","Готово"]
[4019,"Кластер Волга-Север 23 Нижний Новгород Сормовский","ВС-3","2021-03-04","Готово"]
[4311,"Кластер Волга-Север 23 Нижний Новгород Сормовский","ВС-3","2021-03-04","Отказ"]
[4355,"Кластер Волга-Север 23 Нижний Новгород Сормовский","ВС-3","2021-03-04","На согласовании"]
[4711,"Кластер Волга-Север 23 Нижний Новгород Сормовский","ВС-3","2021-03-04","Готово"]
["30YO","Кластер Волга-Север 23 Нижний Новгород Сормовский","ВС-3","2021-03-04","В работе"]
["31MO","Кластер Волга-Север 23 Нижний Новгород Сормовский","ВС-3","2021-03-04","В работе"]
["E033","Кластер Волга-Север 23 Нижний Новгород Сормовский","ВС-3","2021-03-04","В работе"]
["E034","Кластер Волга-Север 23 Нижний Новгород Сормовский","ВС-3","2021-03-04","В работе"]
["E486","Кластер Волга-Север 23 Нижний Новгород Сормовский","ВС-3","2021-03-04","В работе"]
["G444","Кластер Волга-Север 23 Нижний Новгород Сормовский","ВС-3","2021-03-04","В работе"]
["H315","Кластер Волга-Север 23 Нижний Новгород Сормовский","ВС-3","2021-03-04","В работе"]
["H777","Кластер Волга-Север 23 Нижний Новгород Сормовский","ВС-3","2021-03-04","Согласован"]
["J955","Кластер Волга-Север 23 Нижний Новгород Сормовский","ВС-3","2021-03-04","Согласован"]
["L518","Кластер Волга-Север 23 Нижний Новгород Сормовский","ВС-3","2021-03-04","На согласовании"]
["O719","Кластер Волга-Север 23 Нижний Новгород Сормовский","ВС-3","2021-03-04","В работе"]
["Q270","Кластер Волга-Север 23 Нижний Новгород Сормовский","ВС-3","2021-03-04","В работе"]
["Q506","Кластер Волга-Север 23 Нижний Новгород Сормовский","ВС-3","2021-03-04","В работе"]
["Q902","Кластер Волга-Север 23 Нижний Новгород Сормовский","ВС-3","2021-03-04","В работе"]
["Q906","Кластер Волга-Север 23 Нижний Новгород Сормовский","ВС-3","2021-03-04","На согласовании"]
["Q941","Кластер Волга-Север 23 Нижний Новгород Сормовский","ВС-3","2021-03-04","В ожидании"]
["S934","Кластер Волга-Север 23 Нижний Новгород Сормовский","ВС-3","2021-03-04","Отказ"]
["X316","Кластер Волга-Север 23 Нижний Новгород Сормовский","ВС-3","2021-03-04","В ожидании"]
["Y408","Кластер Волга-Север 23 Нижний Новгород Сормовский","ВС-3","2021-03-04","На согласовании"]
["Y411","Кластер Волга-Север 23 Нижний Новгород Сормовский","ВС-3","2021-03-04","Отказ"]
["Y664","Кластер Волга-Север 23 Нижний Новгород Сормовский","ВС-3","2021-03-04","На согласовании"]
[4034,"Кластер Волга-Север 10 Киров","ВС-2","2021-03-04","В ожидании"]
[8566,"Кластер Волга-Север 07 Череповец","ВС-1","2021-03-04","В ожидании"]
["395T","Кластер Волга-Север 01 Ярославль-Север","ВС-1","2021-03-04","В работе"]
["395T","Кластер Волга-Север 01 Ярославль-Север","ВС-1","2021-03-04","В ожидании"]
[4889,"Кластер Волга-Север 25 Ковров","ВС-3","2021-03-04","В ожидании"]
["Q270","Кластер Волга-Север 23 Нижний Новгород Сормовский","ВС-3","2021-03-05","В ожидании"]
[null,null,null,null,""]
[null,null,null,null,""]
[null,null,null,null,""]
[null,null,null,null,""]
[null,null,null,null,""]
[null,null,null,null,""]
[null,null,null,null,""]
[null,null,null,null,""]
[null,null,null,null,""]
[null,null,null,null,""]
[null,null,null,null,""]
[null,null,null,null,""]
[null,null,null,null,""]
[null,null,null,null,""]
[null,null,null,null,""]
[null,null,null,null,""]
[null,null,null,null,""]
[null,null,null,null,""]
[null,null,null,null,""]
[null,null,null,null,""]
[null,null,null,null,""]
[null,null,null,null,""]
[null,null,null,null,""]
[null,null,null,null,""]
[null,null,null,null,""]
[null,null,null,null,""]
[null,null,null,null,""]
[null,null,null,null,""]
[null,null,null,null,""]
[null,null,null,null,""]
[null,null,null,null,""]
[null,null,null,null,""]
[null,null,null,null,""]
[null,null,null,null,""]
[null,null,null,null,""]
[null,null,null,null,""]
[null,null,null,null,""]
[null,null,null,null,""]
[null,null,null,null,""]
[null,null,null,null,""]
[null,null,null,null,""]
[null,null,null,null,""]
[null,null,null,null,""]
[null,null,null,null,""]
[null,null,null,null,""]
[null,null,null,null,""]
[null,null,null,null,""]
[null,null,null,null,""]
[null,null,null,null,""]
[null,null,null,null,""]
[null,null,null,null,""]
[null,null,null,null,""]
[null,null,null,null,""]
[null,null,null,null,""]
[null,null,null,null,""]
[null,null,null,null,""]
[null,null,null,null,""]
[null,null,null,null,""]
[null,null,null,null,""]
[null,null,null,null,""]
[null,null,null,null,""]
[null,null,null,null,""]
[null,null,null,null,""]
[null,null,null,null,""]
[null,null,null,null,""]
[null,null,null,null,""]
[null,null,null,null,""]
[null,null,null,null,""]
[null,null,null,null,""]
[null,null,null,null,""]
[null,null,null,null,""]
[null,null,null,null,""]
[null,null,null,null,""]
[null,null,null,null,""]
[null,null,null,null,""]
[null,null,null,null,""]
[null,null,null,null,""]
[null,null,null,null,""]
[null,null,null,null,""]
[null,null,null,null,""]
[null,null,null,null,""]
[null,null,null,null,""]
[null,null,null,null,""]
[null,null,null,null,""]
[null,null,null,null,""]
[null,null,null,null,""]
[null,null,null,null,""]
[null,null,null,null,""]
[null,null,null,null,""]
[null,null,null,null,""]
[null,null,null,null,""]
[null,null,null,null,""]
[null,null,null,null,""]
[null,null,null,null,""]
[null,null,null,null,""]
[null,null,null,null,""]
[null,null,null,null,""]
[null,null,null,null,""]
[null,null,null,null,""]
[null,null,null,null,""]
[null,null,null,null,""]
[null,null,null,null,""]
[null,null,null,null,""]
[null,null,null,null,""]
[null,null,null,null,""]
[null,null,null,null,""]
[null,null,null,null,""]
[null,null,null,null,""]
[null,null,null,null,""]
[null,null,null,null,""]
[null,null,null,null,""]
[null,null,null,null,""]
[null,null,null,null,""]
[null,null,null,null,""]
[null,null,null,null,""]
[null,null,null,null,""]
[null,null,null,null,""]
[null,null,null,null,""]
[null,null,null,null,""]
[null,null,null,null,""]
[null,null,null,null,""]
[null,null,null,null,""]
[null,null,null,null,""]
[null,null,null,null,""]
[null,null,null,null,""]
[null,null,null,null,""]
[null,null,null,null,""]
[null,null,null,null,""]
[null,null,null,null,""]
[null,null,null,null,""]
[null,null,null,null,""]
[null,null,null,null,""]
[null,null,null,null,""]
[null,null,null,null,""]
[null,null,null,null,""]
[null,null,null,null,""]
[null,null,null,null,""]
[null,null,null,null,""]
[null,null,null,null,""]
[null,null,null,null,""]
[null,null,null,null,""]
[null,null,null,null,""]
[null,null,null,null,""]
[null,null,null,null,""]
[null,null,null,null,""]
[null,null,null,null,""]
[null,null,null,null,""]
[null,null,null,null,""]
[null,null,null,null,""]
[null,null,null,null,""]
[null,null,null,null,""]
[null,null,null,null,""]
[null,null,null,null,""]
[null,null,null,null,""]
[null,null,null,null,""]
[null,null,null,null,""]
[null,null,null,null,""]
[null,null,null,null,""]
[null,null,null,null,""]
[null,null,null,null,""]
[null,null,null,null,""]
[null,null,null,null,""]
[null,null,null,null,""]
[null,null,null,null,""]
[null,null,null,null,""]
[null,null,null,null,""]
[null,null,null,null,""]
[null,null,null,null,""]
[null,null,null,null,""]
[null,null,null,null,""]
[null,null,null,null,""]
[null,null,null,null,""]
[null,null,null,null,""]
[null,null,null,null,""]
[null,null,null,null,""]
[null,null,null,null,""]
[null,null,null,null,""]
[null,null,null,null,""]
[null,null,null,null,""]
[null,null,null,null,""]
[null,null,null,null,""]
[null,null,null,null,""]
[null,null,null,null,""]
[null,null,null,null,""]
[null,null,null,null,""]
[null,null,null,null,""]
[null,null,null,null,""]
[null,null,null,null,""]
[null,null,null,null,""]
[null,null,null,null,""]
[null,null,null,null,""]
[null,null,null,null,""]
[null,null,null,null,""]
[null,null,null,null,""]
[null,null,null,null,""]
[null,null,null,null,""]
[null,null,null,null,""]
[null,null,null,null,""]
[null,null,null,null,""]
[null,null,null,null,""]
[null,null,null,null,""]
[null,null,null,null,""]
[null,null,null,null,""]
[null,null,null,null,""]
[null,null,null,null,""]
[null,null,null,null,""]
[null,null,null,null,""]
[null,null,null,null,""]
[null,null,null,null,""]
[null,null,null,null,""]
[null,null,null,null,""]
[null,null,null,null,""]
[null,null,null,null,""]
[null,null,null,null,""]
[null,null,null,null,""]
[null,null,null,null,""]
[null,null,null,null,""]
[null,null,null,null,""]
[null,null,null,null,""]
[null,null,null,null,""]
[null,null,null,null,""]
[null,null,null,null,""]
[null,null,null,null,""]
[null,null,null,null,""]
[null,null,null,null,""]
[null,null,null,null,""]
[null,null,null,null,""]
[null,null,null,null,""]
[null,null,null,null,""]
[null,null,null,null,""]
[null,null,null,null,""]
[null,null,null,null,""]
[null,null,null,null,""]
[null,null,null,null,""]
[null,null,null,null,""]
[null,null,null,null,""]
[null,null,null,null,""]
[null,null,null,null,""]
[null,null,null,null,""]
[null,null,null,null,""]
[null,null,null,null,""]
[null,null,null,null,""]
[null,null,null,null,""]
[null,null,null,null,""]
[null,null,null,null,""]
[null,null,null,null,""]
[null,null,null,null,""]
[null,null,null,null,""]
[null,null,null,null,""]
[null,null,null,null,""]
[null,null,null,null,""]
[null,null,null,null,""]
[null,null,null,null,""]
[null,null,null,null,""]
[null,null,null,null,""]
[null,null,null,null,""]
[null,null,null,null,""]
[null,null,null,null,""]
[null,null,null,null,""]
[null,null,null,null,""]
[null,null,null,null,""]
[null,null,null,null,""]
[null,null,null,null,""]
[null,null,null,null,""]
[null,null,null,null,""]
[null,null,null,null,""]
[null,null,null,null,""]
[null,null,null,null,""]
[null,null,null,null,""]
[null,null,null,null,""]
[null,null,null,null,""]
[null,null,null,null,""]
[null,null,null,null,""]
[null,null,null,null,""]
[null,null,null,null,""]
[null,null,null,null,""]
[null,null,null,null,""]
[null,null,null,null,""]
[null,null,null,null,""]
[null,null,null,null,""]
[null,null,null,null,""]
[null,null,null,null,""]
[null,null,null,null,""]
[null,null,null,null,""]
[null,null,null,null,""]
[null,null,null,null,""]
[null,null,null,null,""]
[null,null,null,null,""]
[null,null,null,null,""]
[null,null,null,null,""]
[null,null,null,null,""]
[null,null,null,null,""]
[null,null,null,null,""]
[null,null,null,null,""]
[null,null,null,null,""]
[null,null,null,null,""]
[null,null,null,null,""]
[null,null,null,null,""]
[null,null,null,null,""]
[null,null,null,null,""]
[null,null,null,null,""]
[null,null,null,null,""]
[null,null,null,null,""]
[null,null,null,null,""]
[null,null,null,null,""]
[null,null,null,null,""]
[null,null,null,null,""]
[null,null,null,null,""]
[null,null,null,null,""]
[null,null,null,null,""]
[null,null,null,null,""]
[null,null,null,null,""]
[null,null,null,null,""]
[null,null,null,null,""]
[null,null,null,null,""]
[null,null,null,null,""]
[null,null,null,null,""]
[null,null,null,null,""]
[null,null,null,null,""]
[null,null,null,null,""]
[null,null,null,null,""]
[null,null,null,null,""]
[null,null,null,null,""]
[null,null,null,null,""]
[null,null,null,null,""]
[null,null,null,null,""]
[null,null,null,null,""]
[null,null,null,null,""]
[null,null,null,null,""]
[null,null,null,null,""]
[null,null,null,null,""]
[null,null,null,null,""]
[null,null,null,null,""]
[null,null,null,null,""]
[null,null,null,null,""]
[null,null,null,null,""]
[null,null,null,null,""]
[null,null,null,null,""]
[null,null,null,null,""]
[null,null,null,null,""]
[null,null,null,null,""]
[null,null,null,null,""]
[null,null,null,null,""]
[null,null,null,null,""]
[null,null,null,null,""]
[null,null,null,null,""]
[null,null,null,null,""]
[null,null,null,null,""]
[null,null,null,null,""]
[null,null,null,null,""]
[null,null,null,null,""]
[null,null,null,null,""]
[null,null,null,null,""]
[null,null,null,null,""]
[null,null,null,null,""]
[null,null,null,null,""]
[null,null,null,null,""]
[null,null,null,null,""]
[null,null,null,null,""]
[null,null,null,null,""]
[null,null,null,null,""]
[null,null,null,null,""]
[null,null,null,null,""]
[null,null,null,null,""]
[null,null,null,null,""]
[null,null,null,null,""]
[null,null,null,null,""]
[null,null,null,null,""]
[null,null,null,null,""]
[null,null,null,null,""]
[null,null,null,null,""]
[null,null,null,null,""]
[null,null,null,null,""]
[null,null,null,null,""]
[null,null,null,null,""]
[null,null,null,null,""]
[null,null,null,null,""]
[null,null,null,null,""]
[null,null,null,null,""]
[null,null,null,null,""]
[null,null,null,null,""]
[null,null,null,null,""]
[null,null,null,null,""]
[null,null,null,null,""]
[null,null,null,null,""]
[null,null,null,null,""]
[null,null,null,null,""]
[null,null,null,null,""]
[null,null,null,null,""]
[null,null,null,null,""]
[null,null,null,null,""]
[null,null,null,null,""]
[null,null,null,null,""]
[null,null,null,null,""]
[null,null,null,null,""]
[null,null,null,null,""]
[null,null,null,null,""]
[null,null,null,null,""]
[null,null,null,null,""]
[null,null,null,null,""]
[null,null,null,null,""]
[null,null,null,null,""]
[null,null,null,null,""]
[null,null,null,null,""]
[null,null,null,null,""]
[null,null,null,null,""]
[null,null,null,null,""]
[null,null,null,null,""]
[null,null,null,null,""]
[null,null,null,null,""]
[null,null,null,null,""]
[null,null,null,null,""]
[null,null,null,null,""]
[null,null,null,null,""]
[null,null,null,null,""]
[null,null,null,null,""]
[null,null,null,null,""]
[null,null,null,null,""]
[null,null,null,null,""]
[null,null,null,null,""]
[null,null,null,null,""]
[null,null,null,null,""]
[null,null,null,null,""]
[null,null,null,null,""]
[null,null,null,null,""]
[null,null,null,null,""]
[null,null,null,null,""]
[null,null,null,null,""]
[null,null,null,null,""]
[null,null,null,null,""]
[null,null,null,null,""]
[null,null,null,null,""]
[null,null,null,null,""]
[null,null,null,null,""]
[null,null,null,null,""]
[null,null,null,null,""]
[null,null,null,null,""]
[null,null,null,null,""]
[null,null,null,null,""]
[null,null,null,null,""]
[null,null,null,null,""]
[null,null,null,null,""]
[null,null,null,null,""]
[null,null,null,null,""]
[null,null,null,null,""]
[null,null,null,null,""]
[null,null,null,null,""]
[null,null,null,null,""]
[null,null,null,null,""]
[null,null,null,null,""]
[null,null,null,null,""]
[null,null,null,null,""]
[null,null,null,null,""]
[null,null,null,null,""]
[null,null,null,null,""]
[null,null,null,null,""]
[null,null,null,null,""]
[null,null,null,null,""]
[null,null,null,null,""]
[null,null,null,null,""]
[null,null,null,null,""]
[null,null,null,null,""]
[null,null,null,null,""]
[null,null,null,null,""]
[null,null,null,null,""]
[null,null,null,null,""]
[null,null,null,null,""]
[null,null,null,null,""]
[null,null,null,null,""]
[null,null,null,null,""]
[null,null,null,null,""]
[null,null,null,null,""]
[null,null,null,null,""]
[null,null,null,null,""]
[null,null,null,null,""]
[null,null,null,null,""]
[null,null,null,null,""]
[null,null,null,null,""]
[null,null,null,null,""]
[null,null,null,null,""]
[null,null,null,null,""]
[null,null,null,null,""]
[null,null,null,null,""]
[null,null,null,null,""]
[null,null,null,null,""]
[null,null,null,null,""]
[null,null,null,null,""]
[null,null,null,null,""]
[null,null,null,null,""]
[null,null,null,null,""]
[null,null,null,null,""]
[null,null,null,null,""]
[null,null,null,null,""]
[null,null,null,null,""]
[null,null,null,null,""]
[null,null,null,null,""]
[null,null,null,null,""]
[null,null,null,null,""]
[null,null,null,null,""]
[null,null,null,null,""]
[null,null,null,null,""]
[null,null,null,null,""]
[null,null,null,null,""]
[null,null,null,null,""]
[null,null,null,null,""]
[null,null,null,null,""]
[null,null,null,null,""]
[null,null,null,null,""]
[null,null,null,null,""]
[null,null,null,null,""]
[null,null,null,null,""]
[null,null,null,null,""]
[null,null,null,null,""]
[null,null,null,null,""]
[null,null,null,null,""]
[null,null,null,null,""]
[null,null,null,null,""]
[null,null,null,null,""]
[null,null,null,null,""]
[null,null,null,null,""]
[null,null,null,null,""]
[null,null,null,null,""]
[null,null,null,null,""]
[null,null,null,null,""]
[null,null,null,null,""]
[null,null,null,null,""]
[null,null,null,null,""]
[null,null,null,null,""]
[null,null,null,null,""]
[null,null,null,null,""]
[null,null,null,null,""]
[null,null,null,null,""]
[null,null,null,null,""]
[null,null,null,null,""]
[null,null,null,null,""]
[null,null,null,null,""]
[null,null,null,null,""]
[null,null,null,null,""]
[null,null,null,null,""]
[null,null,null,null,""]
[null,null,null,null,""]
[null,null,null,null,""]
[null,null,null,null,""]
[null,null,null,null,""]
[null,null,null,null,""]
[null,null,null,null,""]
[null,null,null,null,""]
[null,null,null,null,""]
[null,null,null,null,""]
[null,null,null,null,""]
[null,null,null,null,""]
[null,null,null,null,""]
[null,null,null,null,""]
[null,null,null,null,""]
[null,null,null,null,""]
[null,null,null,null,""]
[null,null,null,null,""]
[null,null,null,null,""]

{"sheet":"Участие в проекте","index":1,"n_rows":125,"n_cols":3,"rows_kept":125,"cut":false,"hidden":true,"merged":[]}
["№ магазина","Код в SAP","Проект"]
[13991,"E457","Реалокатор 2020"]
[14292,"E430","Реалокатор 2020"]
[13877,"E143","Реалокатор 2020"]
[13834,"H981","Реалокатор 2020"]
[13955,"E141","Реалокатор 2020"]
[13241,"H353","Реалокатор 2020"]
[13292,"H963","Реалокатор 2020"]
[10065,"H309","Реалокатор 2020"]
[13074,"H395","Реалокатор 2020"]
[12719,"Y923","Реалокатор 2020"]
[12168,"Y838","Реалокатор 2020"]
[7845,"G238","Реалокатор 2020"]
[10719,"Y937","Реалокатор 2020"]
[12723,"Y877","Реалокатор 2020"]
[9957,"S402","Реалокатор 2020"]
[12485,"Y410","Реалокатор 2020"]
[12153,"Y140","Реалокатор 2020"]
[10645,"X053","Реалокатор 2020"]
[12357,"Y327","Реалокатор 2020"]
[11933,"X842","Реалокатор 2020"]
[9311,"J368","Реалокатор 2020"]
[11363,"X265","Реалокатор 2020"]
[11112,"X003","Реалокатор 2020"]
[9315,"S775","Реалокатор 2020"]
[9233,"J229","Реалокатор 2020"]
[9850,"S265","Реалокатор 2020"]
[8741,"Y053","Реалокатор 2020"]
[9666,"J934","Реалокатор 2020"]
[8558,"J393","Реалокатор 2020"]
[10280,"J910","Реалокатор 2020"]
[8659,"J791","Реалокатор 2020"]
[6983,"Q354","Реалокатор 2020"]
[7349,"Q735","Реалокатор 2020"]
[9140,"J362","Реалокатор 2020"]
[9483,"J602","Реалокатор 2020"]
[10086,"J544","Реалокатор 2020"]
[7799,"G227","Реалокатор 2020"]
[8695,"J207","Реалокатор 2020"]
[7580,"Q988","Реалокатор 2020"]
[8969,"J211","Реалокатор 2020"]
[8522,"G778","Реалокатор 2020"]
[8130,"G494","Реалокатор 2020"]
[9028,"G530","Реалокатор 2020"]
[7347,"Q733","Реалокатор 2020"]
[8269,"G553","Реалокатор 2020"]
[8039,"G415","Реалокатор 2020"]
[8356,"G687","Реалокатор 2020"]
[8046,"G526","Реалокатор 2020"]
[9036,"G515","Реалокатор 2020"]
[7810,"G475","Реалокатор 2020"]
[7081,"Q465","Реалокатор 2020"]
[7916,"G295","Реалокатор 2020"]
[7895,"G272","Реалокатор 2020"]
[7853,"G248","Реалокатор 2020"]
[7345,"Q731","Реалокатор 2020"]
[3692,"Q850","Реалокатор 2020"]
[7517,"Q917","Реалокатор 2020"]
[7548,"Q937","Реалокатор 2020"]
[7389,"Q781","Реалокатор 2020"]
[7086,"Q470","Реалокатор 2020"]
[7090,"Q474","Реалокатор 2020"]
[7071,"Q455","Реалокатор 2020"]
[6880,"Q290","Реалокатор 2020"]
[7016,"Q416","Реалокатор 2020"]
[7059,"Q491","Реалокатор 2020"]
[6832,"Q224","Реалокатор 2020"]
[6461,"Q218","Реалокатор 2020"]
[6550,"L885","Реалокатор 2020"]
[6587,"L937","Реалокатор 2020"]
[6516,"L822","Реалокатор 2020"]
[6386,"L657","Реалокатор 2020"]
[6448,"L857","Реалокатор 2020"]
[6470,"L853","Реалокатор 2020"]
[6227,"L524","Реалокатор 2020"]
[6235,"L474","Реалокатор 2020"]
[5522,4676,"Реалокатор 2020"]
[5364,4442,"Реалокатор 2020"]
[5255,4167,"Реалокатор 2020"]
[5007,3455,"Реалокатор 2020"]
[4496,3810,"Реалокатор 2020"]
[3529,9826,"Реалокатор 2020"]
[4551,3502,"Реалокатор 2020"]
[4419,9841,"Реалокатор 2020"]
[4391,"X005","Реалокатор 2020"]
[4092,9825,"Реалокатор 2020"]
[3696,9802,"Реалокатор 2020"]
[3557,"J957","Реалокатор 2020"]
[2880,4056,"Реалокатор 2020"]
[3544,"Q592","Реалокатор 2020"]
[3130,"L711","Реалокатор 2020"]
[3435,9153,"Реалокатор 2020"]
[1910,8938,"Реалокатор 2020"]
[3340,"G798","Реалокатор 2020"]
[3244,"J961","Реалокатор 2020"]
[3247,4322,"Реалокатор 2020"]
[10002,"J152","Реалокатор 2020"]
[2381,8588,"Реалокатор 2020"]
[1845,3556,"Реалокатор 2020"]
[2469,3571,"Реалокатор 2020"]
[1992,"J964","Реалокатор 2020"]
[1990,4317,"Реалокатор 2020"]
[1620,"G797","Реалокатор 2020"]
[8633,6939,"Реалокатор 2020"]
[634,6778,"Реалокатор 2020"]
[8563,6797,"Реалокатор 2020"]
[8258,6952,"Реалокатор 2020"]
[8157,7067,"Реалокатор 2020"]
[8320,6741,"Реалокатор 2020"]
[2148,4064,"Реалокатор 2020"]
[2340,"J147","Реалокатор 2020"]
[2194,"S475","Реалокатор 2020"]
[2186,3244,"Реалокатор 2020"]
[1107,"G796","Реалокатор 2020"]
[2717,3249,"Реалокатор 2020"]
[1242,6525,"Реалокатор 2020"]
[1013,4744,"Реалокатор 2020"]
[878,6073,"Реалокатор 2020"]
[9562,"J757","Реалокатор 2020"]
[940,"G597","Реалокатор 2020"]
[133,"J755","Реалокатор 2020"]
[5177,4015,"Реалокатор 2020"]
[120,"L267","Реалокатор 2020"]
[5235,4139,"Реалокатор 2020"]
[11235,"X056","Реалокатор 2020"]

{"sheet":"Данные за 2021 г","index":2,"n_rows":200,"n_cols":5,"rows_kept":200,"cut":false,"hidden":false,"merged":[]}
["Территория","Кластера","Статус","Кол-во заявок","ДОЛЖНО БЫТЬ"]
["ВС-1 Итог",null,null,{"$f":"SUM(D3:D8)","v":0}]
["ВС-1",null,"В ожидании",{"$f":"COUNTIFS(Реестр!$C:$C,'Данные за 2021 г'!$A3,Реестр!$E:$E,$C3,Реестр!$D:$D,\">01.01.2021\")","v":0},3]
["ВС-1",null,"В работе",{"$f":"COUNTIFS(Реестр!$C:$C,'Данные за 2021 г'!$A4,Реестр!$E:$E,$C4,Реестр!$D:$D,\">01.01.2021\")","v":0},2]
["ВС-1",null,"Готово",{"$f":"COUNTIFS(Реестр!$C:$C,'Данные за 2021 г'!$A5,Реестр!$E:$E,$C5,Реестр!$D:$D,\">01.01.2021\")","v":0},0]
["ВС-1",null,"На согласовании",{"$f":"COUNTIFS(Реестр!$C:$C,'Данные за 2021 г'!$A6,Реестр!$E:$E,$C6,Реестр!$D:$D,\">01.01.2021\")","v":0},5]
["ВС-1",null,"Отказ",{"$f":"COUNTIFS(Реестр!$C:$C,'Данные за 2021 г'!$A7,Реестр!$E:$E,$C7,Реестр!$D:$D,\">01.01.2021\")","v":0},1]
["ВС-1",null,"Согласован",{"$f":"COUNTIFS(Реестр!$C:$C,'Данные за 2021 г'!$A8,Реестр!$E:$E,$C8,Реестр!$D:$D,\">01.01.2021\")","v":0},0]
["ВС-1 Кластера Итог",null,null,null,"2021-01-01"]
[null,"Кластер Волга-Север 01 Ярославль-Север","В ожидании",{"$f":"COUNTIFS(Реестр!B$2:B$6500,B10,Реестр!E$2:E$6500,C10,Реестр!D$2:D$6500,\">\"&E$9)","v":1}]
[null,"Кластер Волга-Север 01 Ярославль-Север","В работе",{"$f":"COUNTIFS(Реестр!B$2:B$6500,B11,Реестр!E$2:E$6500,C11,Реестр!D$2:D$6500,\">\"&E$9)","v":1}]
[null,"Кластер Волга-Север 01 Ярославль-Север","Готово",{"$f":"COUNTIFS(Реестр!B$2:B$6500,B12,Реестр!E$2:E$6500,C12,Реестр!D$2:D$6500,\">\"&E$9)","v":0}]
[null,"Кластер Волга-Север 01 Ярославль-Север","На согласовании",{"$f":"COUNTIFS(Реестр!B$2:B$6500,B13,Реестр!E$2:E$6500,C13,Реестр!D$2:D$6500,\">\"&E$9)","v":1}]
[null,"Кластер Волга-Север 01 Ярославль-Север","Отказ",{"$f":"COUNTIFS(Реестр!B$2:B$6500,B14,Реестр!E$2:E$6500,C14,Реестр!D$2:D$6500,\">\"&E$9)","v":0}]
[null,"Кластер Волга-Север 01 Ярославль-Север","Согласован",{"$f":"COUNTIFS(Реестр!B$2:B$6500,B15,Реестр!E$2:E$6500,C15,Реестр!D$2:D$6500,\">\"&E$9)","v":0}]
[null,"Кластер Волга-Север 01 Ярославль-Север Итог",null,{"$f":"COUNTIFS(Реестр!B$2:B$6500,B16,Реестр!E$2:E$6500,C16,Реестр!D$2:D$6500,\">\"&E$9)","v":0}]
[null,"Кластер Волга-Север 02 Вологда","В ожидании",{"$f":"COUNTIFS(Реестр!B$2:B$6500,B17,Реестр!E$2:E$6500,C17,Реестр!D$2:D$6500,\">\"&E$9)","v":0}]
[null,"Кластер Волга-Север 02 Вологда","В работе",{"$f":"COUNTIFS(Реестр!B$2:B$6500,B18,Реестр!E$2:E$6500,C18,Реестр!D$2:D$6500,\">\"&E$9)","v":0}]
[null,"Кластер Волга-Север 02 Вологда","Готово",{"$f":"COUNTIFS(Реестр!B$2:B$6500,B19,Реестр!E$2:E$6500,C19,Реестр!D$2:D$6500,\">\"&E$9)","v":0}]
[null,"Кластер Волга-Север 02 Вологда","На согласовании",{"$f":"COUNTIFS(Реестр!B$2:B$6500,B20,Реестр!E$2:E$6500,C20,Реестр!D$2:D$6500,\">\"&E$9)","v":4}]
[null,"Кластер Волга-Север 02 Вологда","Отказ",{"$f":"COUNTIFS(Реестр!B$2:B$6500,B21,Реестр!E$2:E$6500,C21,Реестр!D$2:D$6500,\">\"&E$9)","v":1}]
[null,"Кластер Волга-Север 02 Вологда","Согласован",{"$f":"COUNTIFS(Реестр!B$2:B$6500,B22,Реестр!E$2:E$6500,C22,Реестр!D$2:D$6500,\">\"&E$9)","v":0}]
[null,"Кластер Волга-Север 02 Вологда Итог",null,{"$f":"COUNTIFS(Реестр!B$2:B$6500,B23,Реестр!E$2:E$6500,C23,Реестр!D$2:D$6500,\">\"&E$9)","v":0}]
[null,"Кластер Волга-Север 03 Кострома","В ожидании",{"$f":"COUNTIFS(Реестр!B$2:B$6500,B24,Реестр!E$2:E$6500,C24,Реестр!D$2:D$6500,\">\"&E$9)","v":0}]
[null,"Кластер Волга-Север 03 Кострома","В работе",{"$f":"COUNTIFS(Реестр!B$2:B$6500,B25,Реестр!E$2:E$6500,C25,Реестр!D$2:D$6500,\">\"&E$9)","v":0}]
[null,"Кластер Волга-Север 03 Кострома","Готово",{"$f":"COUNTIFS(Реестр!B$2:B$6500,B26,Реестр!E$2:E$6500,C26,Реестр!D$2:D$6500,\">\"&E$9)","v":0}]
[null,"Кластер Волга-Север 03 Кострома","На согласовании",{"$f":"COUNTIFS(Реестр!B$2:B$6500,B27,Реестр!E$2:E$6500,C27,Реестр!D$2:D$6500,\">\"&E$9)","v":0}]
[null,"Кластер Волга-Север 03 Кострома","Отказ",{"$f":"COUNTIFS(Реестр!B$2:B$6500,B28,Реестр!E$2:E$6500,C28,Реестр!D$2:D$6500,\">\"&E$9)","v":0}]
[null,"Кластер Волга-Север 03 Кострома","Согласован",{"$f":"COUNTIFS(Реестр!B$2:B$6500,B29,Реестр!E$2:E$6500,C29,Реестр!D$2:D$6500,\">\"&E$9)","v":0}]
[null,"Кластер Волга-Север 03 Кострома Итог",null,{"$f":"COUNTIFS(Реестр!B$2:B$6500,B30,Реестр!E$2:E$6500,C30,Реестр!D$2:D$6500,\">\"&E$9)","v":0}]
[null,"Кластер Волга-Север 04 Иваново ЮГ","В ожидании",{"$f":"COUNTIFS(Реестр!B$2:B$6500,B31,Реестр!E$2:E$6500,C31,Реестр!D$2:D$6500,\">\"&E$9)","v":0}]
[null,"Кластер Волга-Север 04 Иваново ЮГ","В работе",{"$f":"COUNTIFS(Реестр!B$2:B$6500,B32,Реестр!E$2:E$6500,C32,Реестр!D$2:D$6500,\">\"&E$9)","v":0}]
[null,"Кластер Волга-Север 04 Иваново ЮГ","Готово",{"$f":"COUNTIFS(Реестр!B$2:B$6500,B33,Реестр!E$2:E$6500,C33,Реестр!D$2:D$6500,\">\"&E$9)","v":0}]
[null,"Кластер Волга-Север 04 Иваново ЮГ","На согласовании",{"$f":"COUNTIFS(Реестр!B$2:B$6500,B34,Реестр!E$2:E$6500,C34,Реестр!D$2:D$6500,\">\"&E$9)","v":0}]
[null,"Кластер Волга-Север 04 Иваново ЮГ","Отказ",{"$f":"COUNTIFS(Реестр!B$2:B$6500,B35,Реестр!E$2:E$6500,C35,Реестр!D$2:D$6500,\">\"&E$9)","v":0}]
[null,"Кластер Волга-Север 04 Иваново ЮГ","Согласован",{"$f":"COUNTIFS(Реестр!B$2:B$6500,B36,Реестр!E$2:E$6500,C36,Реестр!D$2:D$6500,\">\"&E$9)","v":0}]
[null,"Кластер Волга-Север 04 Иваново ЮГ Итог",null,{"$f":"COUNTIFS(Реестр!B$2:B$6500,B37,Реестр!E$2:E$6500,C37,Реестр!D$2:D$6500,\">\"&E$9)","v":0}]
[null,"Кластер Волга-Север 05 Александров","В ожидании",{"$f":"COUNTIFS(Реестр!B$2:B$6500,B38,Реестр!E$2:E$6500,C38,Реестр!D$2:D$6500,\">\"&E$9)","v":0}]
[null,"Кластер Волга-Север 05 Александров","В работе",{"$f":"COUNTIFS(Реестр!B$2:B$6500,B39,Реестр!E$2:E$6500,C39,Реестр!D$2:D$6500,\">\"&E$9)","v":0}]
[null,"Кластер Волга-Север 05 Александров","Готово",{"$f":"COUNTIFS(Реестр!B$2:B$6500,B40,Реестр!E$2:E$6500,C40,Реестр!D$2:D$6500,\">\"&E$9)","v":0}]
[null,"Кластер Волга-Север 05 Александров","На согласовании",{"$f":"COUNTIFS(Реестр!B$2:B$6500,B41,Реестр!E$2:E$6500,C41,Реестр!D$2:D$6500,\">\"&E$9)","v":0}]
[null,"Кластер Волга-Север 05 Александров","Отказ",{"$f":"COUNTIFS(Реестр!B$2:B$6500,B42,Реестр!E$2:E$6500,C42,Реестр!D$2:D$6500,\">\"&E$9)","v":0}]
[null,"Кластер Волга-Север 05 Александров","Согласован",{"$f":"COUNTIFS(Реестр!B$2:B$6500,B43,Реестр!E$2:E$6500,C43,Реестр!D$2:D$6500,\">\"&E$9)","v":0}]
[null,"Кластер Волга-Север 05 Александров Итог",null,{"$f":"COUNTIFS(Реестр!B$2:B$6500,B44,Реестр!E$2:E$6500,C44,Реестр!D$2:D$6500,\">\"&E$9)","v":0}]
[null,"Кластер Волга-Север 06 Рыбинск","В ожидании",{"$f":"COUNTIFS(Реестр!B$2:B$6500,B45,Реестр!E$2:E$6500,C45,Реестр!D$2:D$6500,\">\"&E$9)","v":0}]
[null,"Кластер Волга-Север 06 Рыбинск","В работе",{"$f":"COUNTIFS(Реестр!B$2:B$6500,B46,Реестр!E$2:E$6500,C46,Реестр!D$2:D$6500,\">\"&E$9)","v":0}]
[null,"Кластер Волга-Север 06 Рыбинск","Готово",{"$f":"COUNTIFS(Реестр!B$2:B$6500,B47,Реестр!E$2:E$6500,C47,Реестр!D$2:D$6500,\">\"&E$9)","v":0}]
[null,"Кластер Волга-Север 06 Рыбинск","На согласовании",{"$f":"COUNTIFS(Реестр!B$2:B$6500,B48,Реестр!E$2:E$6500,C48,Реестр!D$2:D$6500,\">\"&E$9)","v":0}]
[null,"Кластер Волга-Север 06 Рыбинск","Отказ",{"$f":"COUNTIFS(Реестр!B$2:B$6500,B49,Реестр!E$2:E$6500,C49,Реестр!D$2:D$6500,\">\"&E$9)","v":0}]
[null,"Кластер Волга-Север 06 Рыбинск","Согласован",{"$f":"COUNTIFS(Реестр!B$2:B$6500,B50,Реестр!E$2:E$6500,C50,Реестр!D$2:D$6500,\">\"&E$9)","v":0}]
[null,"Кластер Волга-Север 06 Рыбинск Итог",null,{"$f":"COUNTIFS(Реестр!B$2:B$6500,B51,Реестр!E$2:E$6500,C51,Реестр!D$2:D$6500,\">\"&E$9)","v":0}]
[null,"Кластер Волга-Север 07 Череповец","В ожидании",{"$f":"COUNTIFS(Реестр!B$2:B$6500,B52,Реестр!E$2:E$6500,C52,Реестр!D$2:D$6500,\">\"&E$9)","v":1}]
[null,"Кластер Волга-Север 07 Череповец","В работе",{"$f":"COUNTIFS(Реестр!B$2:B$6500,B53,Реестр!E$2:E$6500,C53,Реестр!D$2:D$6500,\">\"&E$9)","v":0}]
[null,"Кластер Волга-Север 07 Череповец","Готово",{"$f":"COUNTIFS(Реестр!B$2:B$6500,B54,Реестр!E$2:E$6500,C54,Реестр!D$2:D$6500,\">\"&E$9)","v":0}]
[null,"Кластер Волга-Север 07 Череповец","На согласовании",{"$f":"COUNTIFS(Реестр!B$2:B$6500,B55,Реестр!E$2:E$6500,C55,Реестр!D$2:D$6500,\">\"&E$9)","v":0}]
[null,"Кластер Волга-Север 07 Череповец","Отказ",{"$f":"COUNTIFS(Реестр!B$2:B$6500,B56,Реестр!E$2:E$6500,C56,Реестр!D$2:D$6500,\">\"&E$9)","v":0}]
[null,"Кластер Волга-Север 07 Череповец","Согласован",{"$f":"COUNTIFS(Реестр!B$2:B$6500,B57,Реестр!E$2:E$6500,C57,Реестр!D$2:D$6500,\">\"&E$9)","v":0}]
[null,"Кластер Волга-Север 07 Череповец Итог",null,{"$f":"COUNTIFS(Реестр!B$2:B$6500,B58,Реестр!E$2:E$6500,C58,Реестр!D$2:D$6500,\">\"&E$9)","v":0}]
[null,"Кластер Волга-Север 08 Иваново Север","В ожидании",{"$f":"COUNTIFS(Реестр!B$2:B$6500,B59,Реестр!E$2:E$6500,C59,Реестр!D$2:D$6500,\">\"&E$9)","v":0}]
[null,"Кластер Волга-Север 08 Иваново Север","В работе",{"$f":"COUNTIFS(Реестр!B$2:B$6500,B60,Реестр!E$2:E$6500,C60,Реестр!D$2:D$6500,\">\"&E$9)","v":0}]
[null,"Кластер Волга-Север 08 Иваново Север","Готово",{"$f":"COUNTIFS(Реестр!B$2:B$6500,B61,Реестр!E$2:E$6500,C61,Реестр!D$2:D$6500,\">\"&E$9)","v":0}]
[null,"Кластер Волга-Север 08 Иваново Север","На согласовании",{"$f":"COUNTIFS(Реестр!B$2:B$6500,B62,Реестр!E$2:E$6500,C62,Реестр!D$2:D$6500,\">\"&E$9)","v":0}]
[null,"Кластер Волга-Север 08 Иваново Север","Отказ",{"$f":"COUNTIFS(Реестр!B$2:B$6500,B63,Реестр!E$2:E$6500,C63,Реестр!D$2:D$6500,\">\"&E$9)","v":0}]
[null,"Кластер Волга-Север 08 Иваново Север","Согласован",{"$f":"COUNTIFS(Реестр!B$2:B$6500,B64,Реестр!E$2:E$6500,C64,Реестр!D$2:D$6500,\">\"&E$9)","v":0}]
[null,"Кластер Волга-Север 08 Иваново Север Итог",null,{"$f":"COUNTIFS(Реестр!B$2:B$6500,B65,Реестр!E$2:E$6500,C65,Реестр!D$2:D$6500,\">\"&E$9)","v":0}]
[null,"Кластер Волга-Север 09 Ярославль-Юг","В ожидании",{"$f":"COUNTIFS(Реестр!B$2:B$6500,B66,Реестр!E$2:E$6500,C66,Реестр!D$2:D$6500,\">\"&E$9)","v":1}]
[null,"Кластер Волга-Север 09 Ярославль-Юг","В работе",{"$f":"COUNTIFS(Реестр!B$2:B$6500,B67,Реестр!E$2:E$6500,C67,Реестр!D$2:D$6500,\">\"&E$9)","v":2}]
[null,"Кластер Волга-Север 09 Ярославль-Юг","Готово",{"$f":"COUNTIFS(Реестр!B$2:B$6500,B68,Реестр!E$2:E$6500,C68,Реестр!D$2:D$6500,\">\"&E$9)","v":0}]
[null,"Кластер Волга-Север 09 Ярославль-Юг","На согласовании",{"$f":"COUNTIFS(Реестр!B$2:B$6500,B69,Реестр!E$2:E$6500,C69,Реестр!D$2:D$6500,\">\"&E$9)","v":0}]
[null,"Кластер Волга-Север 09 Ярославль-Юг","Отказ",{"$f":"COUNTIFS(Реестр!B$2:B$6500,B70,Реестр!E$2:E$6500,C70,Реестр!D$2:D$6500,\">\"&E$9)","v":0}]
[null,"Кластер Волга-Север 09 Ярославль-Юг","Согласован",{"$f":"COUNTIFS(Реестр!B$2:B$6500,B71,Реестр!E$2:E$6500,C71,Реестр!D$2:D$6500,\">\"&E$9)","v":0}]
[null,"Кластер Волга-Север 09 Ярославль-Юг Итог",null,{"$f":"COUNTIFS(Реестр!B$2:B$6500,B72,Реестр!E$2:E$6500,C72,Реестр!D$2:D$6500,\">\"&E$9)","v":0}]
["ВС-2 Итог",null,null,{"$f":"COUNTIFS(Реестр!B$2:B$6500,B73,Реестр!E$2:E$6500,C73,Реестр!D$2:D$6500,\">\"&E$9)","v":0}]
["ВС-2",null,"В ожидании",{"$f":"COUNTIFS(Реестр!B$2:B$6500,B74,Реестр!E$2:E$6500,C74,Реестр!D$2:D$6500,\">\"&E$9)","v":0}]
["ВС-2",null,"В работе",{"$f":"COUNTIFS(Реестр!B$2:B$6500,B75,Реестр!E$2:E$6500,C75,Реестр!D$2:D$6500,\">\"&E$9)","v":0}]
["ВС-2",null,"Готово",{"$f":"COUNTIFS(Реестр!B$2:B$6500,B76,Реестр!E$2:E$6500,C76,Реестр!D$2:D$6500,\">\"&E$9)","v":0}]
["ВС-2",null,"На согласовании",{"$f":"COUNTIFS(Реестр!B$2:B$6500,B77,Реестр!E$2:E$6500,C77,Реестр!D$2:D$6500,\">\"&E$9)","v":0}]
["ВС-2",null,"Отказ",{"$f":"COUNTIFS(Реестр!B$2:B$6500,B78,Реестр!E$2:E$6500,C78,Реестр!D$2:D$6500,\">\"&E$9)","v":0}]
["ВС-2",null,"Согласован",{"$f":"COUNTIFS(Реестр!B$2:B$6500,B79,Реестр!E$2:E$6500,C79,Реестр!D$2:D$6500,\">\"&E$9)","v":0}]
["ВС-2 Кластера Итог",null,null,{"$f":"COUNTIFS(Реестр!B$2:B$6500,B80,Реестр!E$2:E$6500,C80,Реестр!D$2:D$6500,\">\"&E$9)","v":0}]
[null,"Кластер Волга-Север 10 Киров","В ожидании",{"$f":"COUNTIFS(Реестр!B$2:B$6500,B81,Реестр!E$2:E$6500,C81,Реестр!D$2:D$6500,\">\"&E$9)","v":1}]
[null,"Кластер Волга-Север 10 Киров","В работе",{"$f":"COUNTIFS(Реестр!B$2:B$6500,B82,Реестр!E$2:E$6500,C82,Реестр!D$2:D$6500,\">\"&E$9)","v":1}]
[null,"Кластер Волга-Север 10 Киров","Готово",{"$f":"COUNTIFS(Реестр!B$2:B$6500,B83,Реестр!E$2:E$6500,C83,Реестр!D$2:D$6500,\">\"&E$9)","v":0}]
[null,"Кластер Волга-Север 10 Киров","На согласовании",{"$f":"COUNTIFS(Реестр!B$2:B$6500,B84,Реестр!E$2:E$6500,C84,Реестр!D$2:D$6500,\">\"&E$9)","v":0}]
[null,"Кластер Волга-Север 10 Киров","Отказ",{"$f":"COUNTIFS(Реестр!B$2:B$6500,B85,Реестр!E$2:E$6500,C85,Реестр!D$2:D$6500,\">\"&E$9)","v":0}]
[null,"Кластер Волга-Север 10 Киров","Согласован",{"$f":"COUNTIFS(Реестр!B$2:B$6500,B86,Реестр!E$2:E$6500,C86,Реестр!D$2:D$6500,\">\"&E$9)","v":0}]
[null,"Кластер Волга-Север 10 Киров Итог",null,{"$f":"COUNTIFS(Реестр!B$2:B$6500,B87,Реестр!E$2:E$6500,C87,Реестр!D$2:D$6500,\">\"&E$9)","v":0}]
[null,"Кластер Волга-Север 11 Сыктывкар","В ожидании",{"$f":"COUNTIFS(Реестр!B$2:B$6500,B88,Реестр!E$2:E$6500,C88,Реестр!D$2:D$6500,\">\"&E$9)","v":0}]
[null,"Кластер Волга-Север 11 Сыктывкар","В работе",{"$f":"COUNTIFS(Реестр!B$2:B$6500,B89,Реестр!E$2:E$6500,C89,Реестр!D$2:D$6500,\">\"&E$9)","v":0}]
[null,"Кластер Волга-Север 11 Сыктывкар","Готово",{"$f":"COUNTIFS(Реестр!B$2:B$6500,B90,Реестр!E$2:E$6500,C90,Реестр!D$2:D$6500,\">\"&E$9)","v":0}]
[null,"Кластер Волга-Север 11 Сыктывкар","На согласовании",{"$f":"COUNTIFS(Реестр!B$2:B$6500,B91,Реестр!E$2:E$6500,C91,Реестр!D$2:D$6500,\">\"&E$9)","v":0}]
[null,"Кластер Волга-Север 11 Сыктывкар","Отказ",{"$f":"COUNTIFS(Реестр!B$2:B$6500,B92,Реестр!E$2:E$6500,C92,Реестр!D$2:D$6500,\">\"&E$9)","v":0}]
[null,"Кластер Волга-Север 11 Сыктывкар","Согласован",{"$f":"COUNTIFS(Реестр!B$2:B$6500,B93,Реестр!E$2:E$6500,C93,Реестр!D$2:D$6500,\">\"&E$9)","v":0}]
[null,"Кластер Волга-Север 11 Сыктывкар Итог",null,{"$f":"COUNTIFS(Реестр!B$2:B$6500,B94,Реестр!E$2:E$6500,C94,Реестр!D$2:D$6500,\">\"&E$9)","v":0}]
[null,"Кластер Волга-Север 12 Кирово-Чепецк","В ожидании",{"$f":"COUNTIFS(Реестр!B$2:B$6500,B95,Реестр!E$2:E$6500,C95,Реестр!D$2:D$6500,\">\"&E$9)","v":0}]
[null,"Кластер Волга-Север 12 Кирово-Чепецк","В работе",{"$f":"COUNTIFS(Реестр!B$2:B$6500,B96,Реестр!E$2:E$6500,C96,Реестр!D$2:D$6500,\">\"&E$9)","v":0}]
[null,"Кластер Волга-Север 12 Кирово-Чепецк","Готово",{"$f":"COUNTIFS(Реестр!B$2:B$6500,B97,Реестр!E$2:E$6500,C97,Реестр!D$2:D$6500,\">\"&E$9)","v":0}]
[null,"Кластер Волга-Север 12 Кирово-Чепецк","На согласовании",{"$f":"COUNTIFS(Реестр!B$2:B$6500,B98,Реестр!E$2:E$6500,C98,Реестр!D$2:D$6500,\">\"&E$9)","v":0}]
[null,"Кластер Волга-Север 12 Кирово-Чепецк","Отказ",{"$f":"COUNTIFS(Реестр!B$2:B$6500,B99,Реестр!E$2:E$6500,C99,Реестр!D$2:D$6500,\">\"&E$9)","v":0}]
[null,"Кластер Волга-Север 12 Кирово-Чепецк","Согласован",{"$f":"COUNTIFS(Реестр!B$2:B$6500,B100,Реестр!E$2:E$6500,C100,Реестр!D$2:D$6500,\">\"&E$9)","v":0}]
[null,"Кластер Волга-Север 12 Кирово-Чепецк Итог",null,{"$f":"COUNTIFS(Реестр!B$2:B$6500,B101,Реестр!E$2:E$6500,C101,Реестр!D$2:D$6500,\">\"&E$9)","v":0}]
[null,"Кластер Волга-Север 14 Архангельск","В ожидании",{"$f":"COUNTIFS(Реестр!B$2:B$6500,B102,Реестр!E$2:E$6500,C102,Реестр!D$2:D$6500,\">\"&E$9)","v":0}]
[null,"Кластер Волга-Север 14 Архангельск","В работе",{"$f":"COUNTIFS(Реестр!B$2:B$6500,B103,Реестр!E$2:E$6500,C103,Реестр!D$2:D$6500,\">\"&E$9)","v":0}]
[null,"Кластер Волга-Север 14 Архангельск","Готово",{"$f":"COUNTIFS(Реестр!B$2:B$6500,B104,Реестр!E$2:E$6500,C104,Реестр!D$2:D$6500,\">\"&E$9)","v":0}]
[null,"Кластер Волга-Север 14 Архангельск","На согласовании",{"$f":"COUNTIFS(Реестр!B$2:B$6500,B105,Реестр!E$2:E$6500,C105,Реестр!D$2:D$6500,\">\"&E$9)","v":0}]
[null,"Кластер Волга-Север 14 Архангельск","Отказ",{"$f":"COUNTIFS(Реестр!B$2:B$6500,B106,Реестр!E$2:E$6500,C106,Реестр!D$2:D$6500,\">\"&E$9)","v":0}]
[null,"Кластер Волга-Север 14 Архангельск","Согласован",{"$f":"COUNTIFS(Реестр!B$2:B$6500,B107,Реестр!E$2:E$6500,C107,Реестр!D$2:D$6500,\">\"&E$9)","v":0}]
[null,"Кластер Волга-Север 14 Архангельск Итог",null,{"$f":"COUNTIFS(Реестр!B$2:B$6500,B108,Реестр!E$2:E$6500,C108,Реестр!D$2:D$6500,\">\"&E$9)","v":0}]
[null,"Кластер Волга-Север 15 Котлас","В ожидании",{"$f":"COUNTIFS(Реестр!B$2:B$6500,B109,Реестр!E$2:E$6500,C109,Реестр!D$2:D$6500,\">\"&E$9)","v":0}]
[null,"Кластер Волга-Север 15 Котлас","В работе",{"$f":"COUNTIFS(Реестр!B$2:B$6500,B110,Реестр!E$2:E$6500,C110,Реестр!D$2:D$6500,\">\"&E$9)","v":0}]
[null,"Кластер Волга-Север 15 Котлас","Готово",{"$f":"COUNTIFS(Реестр!B$2:B$6500,B111,Реестр!E$2:E$6500,C111,Реестр!D$2:D$6500,\">\"&E$9)","v":0}]
[null,"Кластер Волга-Север 15 Котлас","На согласовании",{"$f":"COUNTIFS(Реестр!B$2:B$6500,B112,Реестр!E$2:E$6500,C112,Реестр!D$2:D$6500,\">\"&E$9)","v":0}]
[null,"Кластер Волга-Север 15 Котлас","Отказ",{"$f":"COUNTIFS(Реестр!B$2:B$6500,B113,Реестр!E$2:E$6500,C113,Реестр!D$2:D$6500,\">\"&E$9)","v":0}]
[null,"Кластер Волга-Север 15 Котлас","Согласован",{"$f":"COUNTIFS(Реестр!B$2:B$6500,B114,Реестр!E$2:E$6500,C114,Реестр!D$2:D$6500,\">\"&E$9)","v":0}]
[null,"Кластер Волга-Север 15 Котлас Итог",null,{"$f":"COUNTIFS(Реестр!B$2:B$6500,B115,Реестр!E$2:E$6500,C115,Реестр!D$2:D$6500,\">\"&E$9)","v":0}]
[null,"Кластер Волга-Север 16 Северодвинск","В ожидании",{"$f":"COUNTIFS(Реестр!B$2:B$6500,B116,Реестр!E$2:E$6500,C116,Реестр!D$2:D$6500,\">\"&E$9)","v":0}]
[null,"Кластер Волга-Север 16 Северодвинск","В работе",{"$f":"COUNTIFS(Реестр!B$2:B$6500,B117,Реестр!E$2:E$6500,C117,Реестр!D$2:D$6500,\">\"&E$9)","v":0}]
[null,"Кластер Волга-Север 16 Северодвинск","Готово",{"$f":"COUNTIFS(Реестр!B$2:B$6500,B118,Реестр!E$2:E$6500,C118,Реестр!D$2:D$6500,\">\"&E$9)","v":0}]
[null,"Кластер Волга-Север 16 Северодвинск","На согласовании",{"$f":"COUNTIFS(Реестр!B$2:B$6500,B119,Реестр!E$2:E$6500,C119,Реестр!D$2:D$6500,\">\"&E$9)","v":0}]
[null,"Кластер Волга-Север 16 Северодвинск","Отказ",{"$f":"COUNTIFS(Реестр!B$2:B$6500,B120,Реестр!E$2:E$6500,C120,Реестр!D$2:D$6500,\">\"&E$9)","v":0}]
[null,"Кластер Волга-Север 16 Северодвинск","Согласован",{"$f":"COUNTIFS(Реестр!B$2:B$6500,B121,Реестр!E$2:E$6500,C121,Реестр!D$2:D$6500,\">\"&E$9)","v":0}]
[null,"Кластер Волга-Север 16 Северодвинск Итог",null,{"$f":"COUNTIFS(Реестр!B$2:B$6500,B122,Реестр!E$2:E$6500,C122,Реестр!D$2:D$6500,\">\"&E$9)","v":0}]
["ВС-3 Итог",null,null,{"$f":"COUNTIFS(Реестр!B$2:B$6500,B123,Реестр!E$2:E$6500,C123,Реестр!D$2:D$6500,\">\"&E$9)","v":0}]
["ВС-3",null,"В ожидании",{"$f":"COUNTIFS(Реестр!B$2:B$6500,B124,Реестр!E$2:E$6500,C124,Реестр!D$2:D$6500,\">\"&E$9)","v":0}]
["ВС-3",null,"В работе",{"$f":"COUNTIFS(Реестр!B$2:B$6500,B125,Реестр!E$2:E$6500,C125,Реестр!D$2:D$6500,\">\"&E$9)","v":0}]
["ВС-3",null,"Готово",{"$f":"COUNTIFS(Реестр!B$2:B$6500,B126,Реестр!E$2:E$6500,C126,Реестр!D$2:D$6500,\">\"&E$9)","v":0}]
["ВС-3",null,"На согласовании",{"$f":"COUNTIFS(Реестр!B$2:B$6500,B127,Реестр!E$2:E$6500,C127,Реестр!D$2:D$6500,\">\"&E$9)","v":0}]
["ВС-3",null,"Отказ",{"$f":"COUNTIFS(Реестр!B$2:B$6500,B128,Реестр!E$2:E$6500,C128,Реестр!D$2:D$6500,\">\"&E$9)","v":0}]
["ВС-3",null,"Согласован",{"$f":"COUNTIFS(Реестр!B$2:B$6500,B129,Реестр!E$2:E$6500,C129,Реестр!D$2:D$6500,\">\"&E$9)","v":0}]
["ВС-3 кластера Итог",null,null,{"$f":"COUNTIFS(Реестр!B$2:B$6500,B130,Реестр!E$2:E$6500,C130,Реестр!D$2:D$6500,\">\"&E$9)","v":0}]
[null,"Кластер Волга-Север 17 Дзержинск","В ожидании",{"$f":"COUNTIFS(Реестр!B$2:B$6500,B131,Реестр!E$2:E$6500,C131,Реестр!D$2:D$6500,\">\"&E$9)","v":0}]
[null,"Кластер Волга-Север 17 Дзержинск","В работе",{"$f":"COUNTIFS(Реестр!B$2:B$6500,B132,Реестр!E$2:E$6500,C132,Реестр!D$2:D$6500,\">\"&E$9)","v":0}]
[null,"Кластер Волга-Север 17 Дзержинск","Готово",{"$f":"COUNTIFS(Реестр!B$2:B$6500,B133,Реестр!E$2:E$6500,C133,Реестр!D$2:D$6500,\">\"&E$9)","v":0}]
[null,"Кластер Волга-Север 17 Дзержинск","На согласовании",{"$f":"COUNTIFS(Реестр!B$2:B$6500,B134,Реестр!E$2:E$6500,C134,Реестр!D$2:D$6500,\">\"&E$9)","v":0}]
[null,"Кластер Волга-Север 17 Дзержинск","Отказ",{"$f":"COUNTIFS(Реестр!B$2:B$6500,B135,Реестр!E$2:E$6500,C135,Реестр!D$2:D$6500,\">\"&E$9)","v":0}]
[null,"Кластер Волга-Север 17 Дзержинск","Согласован",{"$f":"COUNTIFS(Реестр!B$2:B$6500,B136,Реестр!E$2:E$6500,C136,Реестр!D$2:D$6500,\">\"&E$9)","v":0}]
[null,"Кластер Волга-Север 17 Дзержинск Итог",null,{"$f":"COUNTIFS(Реестр!B$2:B$6500,B137,Реестр!E$2:E$6500,C137,Реестр!D$2:D$6500,\">\"&E$9)","v":0}]
[null,"Кластер Волга-Север 18 Нижний Новгород Автозаводский","В ожидании",{"$f":"COUNTIFS(Реестр!B$2:B$6500,B138,Реестр!E$2:E$6500,C138,Реестр!D$2:D$6500,\">\"&E$9)","v":0}]
[null,"Кластер Волга-Север 18 Нижний Новгород Автозаводский","В работе",{"$f":"COUNTIFS(Реестр!B$2:B$6500,B139,Реестр!E$2:E$6500,C139,Реестр!D$2:D$6500,\">\"&E$9)","v":0}]
[null,"Кластер Волга-Север 18 Нижний Новгород Автозаводский","Готово",{"$f":"COUNTIFS(Реестр!B$2:B$6500,B140,Реестр!E$2:E$6500,C140,Реестр!D$2:D$6500,\">\"&E$9)","v":0}]
[null,"Кластер Волга-Север 18 Нижний Новгород Автозаводский","На согласовании",{"$f":"COUNTIFS(Реестр!B$2:B$6500,B141,Реестр!E$2:E$6500,C141,Реестр!D$2:D$6500,\">\"&E$9)","v":0}]
[null,"Кластер Волга-Север 18 Нижний Новгород Автозаводский","Отказ",{"$f":"COUNTIFS(Реестр!B$2:B$6500,B142,Реестр!E$2:E$6500,C142,Реестр!D$2:D$6500,\">\"&E$9)","v":0}]
[null,"Кластер Волга-Север 18 Нижний Новгород Автозаводский","Согласован",{"$f":"COUNTIFS(Реестр!B$2:B$6500,B143,Реестр!E$2:E$6500,C143,Реестр!D$2:D$6500,\">\"&E$9)","v":0}]
[null,"Кластер Волга-Север 18 Нижний Новгород Автозаводский Итог",null,{"$f":"COUNTIFS(Реестр!B$2:B$6500,B144,Реестр!E$2:E$6500,C144,Реестр!D$2:D$6500,\">\"&E$9)","v":0}]
[null,"Кластер Волга-Север 19 Нижний Новгород Центр","В ожидании",{"$f":"COUNTIFS(Реестр!B$2:B$6500,B145,Реестр!E$2:E$6500,C145,Реестр!D$2:D$6500,\">\"&E$9)","v":0}]
[null,"Кластер Волга-Север 19 Нижний Новгород Центр","В работе",{"$f":"COUNTIFS(Реестр!B$2:B$6500,B146,Реестр!E$2:E$6500,C146,Реестр!D$2:D$6500,\">\"&E$9)","v":0}]
[null,"Кластер Волга-Север 19 Нижний Новгород Центр","Готово",{"$f":"COUNTIFS(Реестр!B$2:B$6500,B147,Реестр!E$2:E$6500,C147,Реестр!D$2:D$6500,\">\"&E$9)","v":0}]
[null,"Кластер Волга-Север 19 Нижний Новгород Центр","На согласовании",{"$f":"COUNTIFS(Реестр!B$2:B$6500,B148,Реестр!E$2:E$6500,C148,Реестр!D$2:D$6500,\">\"&E$9)","v":0}]
[null,"Кластер Волга-Север 19 Нижний Новгород Центр","Отказ",{"$f":"COUNTIFS(Реестр!B$2:B$6500,B149,Реестр!E$2:E$6500,C149,Реестр!D$2:D$6500,\">\"&E$9)","v":0}]
[null,"Кластер Волга-Север 19 Нижний Новгород Центр","Согласован",{"$f":"COUNTIFS(Реестр!B$2:B$6500,B150,Реестр!E$2:E$6500,C150,Реестр!D$2:D$6500,\">\"&E$9)","v":0}]
[null,"Кластер Волга-Север 19 Нижний Новгород Центр Итог",null,{"$f":"COUNTIFS(Реестр!B$2:B$6500,B151,Реестр!E$2:E$6500,C151,Реестр!D$2:D$6500,\">\"&E$9)","v":0}]
[null,"Кластер Волга-Север 20 Арзамас","В ожидании",{"$f":"COUNTIFS(Реестр!B$2:B$6500,B152,Реестр!E$2:E$6500,C152,Реестр!D$2:D$6500,\">\"&E$9)","v":0}]
[null,"Кластер Волга-Север 20 Арзамас","В работе",{"$f":"COUNTIFS(Реестр!B$2:B$6500,B153,Реестр!E$2:E$6500,C153,Реестр!D$2:D$6500,\">\"&E$9)","v":0}]
[null,"Кластер Волга-Север 20 Арзамас","Готово",{"$f":"COUNTIFS(Реестр!B$2:B$6500,B154,Реестр!E$2:E$6500,C154,Реестр!D$2:D$6500,\">\"&E$9)","v":0}]
[null,"Кластер Волга-Север 20 Арзамас","На согласовании",{"$f":"COUNTIFS(Реестр!B$2:B$6500,B155,Реестр!E$2:E$6500,C155,Реестр!D$2:D$6500,\">\"&E$9)","v":1}]
[null,"Кластер Волга-Север 20 Арзамас","Отказ",{"$f":"COUNTIFS(Реестр!B$2:B$6500,B156,Реестр!E$2:E$6500,C156,Реестр!D$2:D$6500,\">\"&E$9)","v":0}]
[null,"Кластер Волга-Север 20 Арзамас","Согласован",{"$f":"COUNTIFS(Реестр!B$2:B$6500,B157,Реестр!E$2:E$6500,C157,Реестр!D$2:D$6500,\">\"&E$9)","v":0}]
[null,"Кластер Волга-Север 20 Арзамас Итог",null,{"$f":"COUNTIFS(Реестр!B$2:B$6500,B158,Реестр!E$2:E$6500,C158,Реестр!D$2:D$6500,\">\"&E$9)","v":0}]
[null,"Кластер Волга-Север 21 Кстово","В ожидании",{"$f":"COUNTIFS(Реестр!B$2:B$6500,B159,Реестр!E$2:E$6500,C159,Реестр!D$2:D$6500,\">\"&E$9)","v":0}]
[null,"Кластер Волга-Север 21 Кстово","В работе",{"$f":"COUNTIFS(Реестр!B$2:B$6500,B160,Реестр!E$2:E$6500,C160,Реестр!D$2:D$6500,\">\"&E$9)","v":0}]
[null,"Кластер Волга-Север 21 Кстово","Готово",{"$f":"COUNTIFS(Реестр!B$2:B$6500,B161,Реестр!E$2:E$6500,C161,Реестр!D$2:D$6500,\">\"&E$9)","v":1}]
[null,"Кластер Волга-Север 21 Кстово","На согласовании",{"$f":"COUNTIFS(Реестр!B$2:B$6500,B162,Реестр!E$2:E$6500,C162,Реестр!D$2:D$6500,\">\"&E$9)","v":1}]
[null,"Кластер Волга-Север 21 Кстово","Отказ",{"$f":"COUNTIFS(Реестр!B$2:B$6500,B163,Реестр!E$2:E$6500,C163,Реестр!D$2:D$6500,\">\"&E$9)","v":1}]
[null,"Кластер Волга-Север 21 Кстово","Согласован",{"$f":"COUNTIFS(Реестр!B$2:B$6500,B164,Реестр!E$2:E$6500,C164,Реестр!D$2:D$6500,\">\"&E$9)","v":0}]
[null,"Кластер Волга-Север 21 Кстово Итог",null,{"$f":"COUNTIFS(Реестр!B$2:B$6500,B165,Реестр!E$2:E$6500,C165,Реестр!D$2:D$6500,\">\"&E$9)","v":0}]
[null,"Кластер Волга-Север 22 Семеновский","В ожидании",{"$f":"COUNTIFS(Реестр!B$2:B$6500,B166,Реестр!E$2:E$6500,C166,Реестр!D$2:D$6500,\">\"&E$9)","v":0}]
[null,"Кластер Волга-Север 22 Семеновский","В работе",{"$f":"COUNTIFS(Реестр!B$2:B$6500,B167,Реестр!E$2:E$6500,C167,Реестр!D$2:D$6500,\">\"&E$9)","v":0}]
[null,"Кластер Волга-Север 22 Семеновский","Готово",{"$f":"COUNTIFS(Реестр!B$2:B$6500,B168,Реестр!E$2:E$6500,C168,Реестр!D$2:D$6500,\">\"&E$9)","v":0}]
[null,"Кластер Волга-Север 22 Семеновский","На согласовании",{"$f":"COUNTIFS(Реестр!B$2:B$6500,B169,Реестр!E$2:E$6500,C169,Реестр!D$2:D$6500,\">\"&E$9)","v":1}]
[null,"Кластер Волга-Север 22 Семеновский","Отказ",{"$f":"COUNTIFS(Реестр!B$2:B$6500,B170,Реестр!E$2:E$6500,C170,Реестр!D$2:D$6500,\">\"&E$9)","v":0}]
[null,"Кластер Волга-Север 22 Семеновский","Согласован",{"$f":"COUNTIFS(Реестр!B$2:B$6500,B171,Реестр!E$2:E$6500,C171,Реестр!D$2:D$6500,\">\"&E$9)","v":0}]
[null,"Кластер Волга-Север 22 Семеновский Итог",null,{"$f":"COUNTIFS(Реестр!B$2:B$6500,B172,Реестр!E$2:E$6500,C172,Реестр!D$2:D$6500,\">\"&E$9)","v":0}]
[null,"Кластер Волга-Север 23 Нижний Новгород Сормовский","В ожидании",{"$f":"COUNTIFS(Реестр!B$2:B$6500,B173,Реестр!E$2:E$6500,C173,Реестр!D$2:D$6500,\">\"&E$9)","v":3}]
[null,"Кластер Волга-Север 23 Нижний Новгород Сормовский","В работе",{"$f":"COUNTIFS(Реестр!B$2:B$6500,B174,Реестр!E$2:E$6500,C174,Реестр!D$2:D$6500,\">\"&E$9)","v":11}]
[null,"Кластер Волга-Север 23 Нижний Новгород Сормовский","Готово",{"$f":"COUNTIFS(Реестр!B$2:B$6500,B175,Реестр!E$2:E$6500,C175,Реестр!D$2:D$6500,\">\"&E$9)","v":4}]
[null,"Кластер Волга-Север 23 Нижний Новгород Сормовский","На согласовании",{"$f":"COUNTIFS(Реестр!B$2:B$6500,B176,Реестр!E$2:E$6500,C176,Реестр!D$2:D$6500,\">\"&E$9)","v":6}]
[null,"Кластер Волга-Север 23 Нижний Новгород Сормовский","Отказ",{"$f":"COUNTIFS(Реестр!B$2:B$6500,B177,Реестр!E$2:E$6500,C177,Реестр!D$2:D$6500,\">\"&E$9)","v":3}]
[null,"Кластер Волга-Север 23 Нижний Новгород Сормовский","Согласован",{"$f":"COUNTIFS(Реестр!B$2:B$6500,B178,Реестр!E$2:E$6500,C178,Реестр!D$2:D$6500,\">\"&E$9)","v":2}]
[null,"Кластер Волга-Север 23 Нижний Новгород Сормовский Итог",null,{"$f":"COUNTIFS(Реестр!B$2:B$6500,B179,Реестр!E$2:E$6500,C179,Реестр!D$2:D$6500,\">\"&E$9)","v":0}]
[null,"Кластер Волга-Север 24 Мордовия","В ожидании",{"$f":"COUNTIFS(Реестр!B$2:B$6500,B180,Реестр!E$2:E$6500,C180,Реестр!D$2:D$6500,\">\"&E$9)","v":0}]
[null,"Кластер Волга-Север 24 Мордовия","В работе",{"$f":"COUNTIFS(Реестр!B$2:B$6500,B181,Реестр!E$2:E$6500,C181,Реестр!D$2:D$6500,\">\"&E$9)","v":0}]
[null,"Кластер Волга-Север 24 Мордовия","Готово",{"$f":"COUNTIFS(Реестр!B$2:B$6500,B182,Реестр!E$2:E$6500,C182,Реестр!D$2:D$6500,\">\"&E$9)","v":0}]
[null,"Кластер Волга-Север 24 Мордовия","На согласовании",{"$f":"COUNTIFS(Реестр!B$2:B$6500,B183,Реестр!E$2:E$6500,C183,Реестр!D$2:D$6500,\">\"&E$9)","v":0}]
[null,"Кластер Волга-Север 24 Мордовия","Отказ",{"$f":"COUNTIFS(Реестр!B$2:B$6500,B184,Реестр!E$2:E$6500,C184,Реестр!D$2:D$6500,\">\"&E$9)","v":0}]
[null,"Кластер Волга-Север 24 Мордовия","Согласован",{"$f":"COUNTIFS(Реестр!B$2:B$6500,B185,Реестр!E$2:E$6500,C185,Реестр!D$2:D$6500,\">\"&E$9)","v":0}]
[null,"Кластер Волга-Север 24 Мордовия Итог",null,{"$f":"COUNTIFS(Реестр!B$2:B$6500,B186,Реестр!E$2:E$6500,C186,Реестр!D$2:D$6500,\">\"&E$9)","v":0}]
[null,"Кластер Волга-Север 25 Ковров","В ожидании",{"$f":"COUNTIFS(Реестр!B$2:B$6500,B187,Реестр!E$2:E$6500,C187,Реестр!D$2:D$6500,\">\"&E$9)","v":1}]
[null,"Кластер Волга-Север 25 Ковров","В работе",{"$f":"COUNTIFS(Реестр!B$2:B$6500,B188,Реестр!E$2:E$6500,C188,Реестр!D$2:D$6500,\">\"&E$9)","v":0}]
[null,"Кластер Волга-Север 25 Ковров","Готово",{"$f":"COUNTIFS(Реестр!B$2:B$6500,B189,Реестр!E$2:E$6500,C189,Реестр!D$2:D$6500,\">\"&E$9)","v":0}]
[null,"Кластер Волга-Север 25 Ковров","На согласовании",{"$f":"COUNTIFS(Реестр!B$2:B$6500,B190,Реестр!E$2:E$6500,C190,Реестр!D$2:D$6500,\">\"&E$9)","v":0}]
[null,"Кластер Волга-Север 25 Ковров","Отказ",{"$f":"COUNTIFS(Реестр!B$2:B$6500,B191,Реестр!E$2:E$6500,C191,Реестр!D$2:D$6500,\">\"&E$9)","v":0}]
[null,"Кластер Волга-Север 25 Ковров","Согласован",{"$f":"COUNTIFS(Реестр!B$2:B$6500,B192,Реестр!E$2:E$6500,C192,Реестр!D$2:D$6500,\">\"&E$9)","v":0}]
[null,"Кластер Волга-Север 25 Ковров Итог",null,{"$f":"COUNTIFS(Реестр!B$2:B$6500,B193,Реестр!E$2:E$6500,C193,Реестр!D$2:D$6500,\">\"&E$9)","v":0}]
[null,"Кластер Волга-Север 26 Владимир","В ожидании",{"$f":"COUNTIFS(Реестр!B$2:B$6500,B194,Реестр!E$2:E$6500,C194,Реестр!D$2:D$6500,\">\"&E$9)","v":0}]
[null,"Кластер Волга-Север 26 Владимир","В работе",{"$f":"COUNTIFS(Реестр!B$2:B$6500,B195,Реестр!E$2:E$6500,C195,Реестр!D$2:D$6500,\">\"&E$9)","v":0}]
[null,"Кластер Волга-Север 26 Владимир","Готово",{"$f":"COUNTIFS(Реестр!B$2:B$6500,B196,Реестр!E$2:E$6500,C196,Реестр!D$2:D$6500,\">\"&E$9)","v":0}]
[null,"Кластер Волга-Север 26 Владимир","На согласовании",{"$f":"COUNTIFS(Реестр!B$2:B$6500,B197,Реестр!E$2:E$6500,C197,Реестр!D$2:D$6500,\">\"&E$9)","v":0}]
[null,"Кластер Волга-Север 26 Владимир","Отказ",{"$f":"COUNTIFS(Реестр!B$2:B$6500,B198,Реестр!E$2:E$6500,C198,Реестр!D$2:D$6500,\">\"&E$9)","v":0}]
[null,"Кластер Волга-Север 26 Владимир","Согласован",{"$f":"COUNTIFS(Реестр!B$2:B$6500,B199,Реестр!E$2:E$6500,C199,Реестр!D$2:D$6500,\">\"&E$9)","v":0}]
[null,"Кластер Волга-Север 26 Владимир Итог",null,{"$f":"COUNTIFS(Реестр!B$2:B$6500,B200,Реестр!E$2:E$6500,C200,Реестр!D$2:D$6500,\">\"&E$9)","v":0}]

{"sheet":"Кто рисует","index":3,"n_rows":10,"n_cols":1,"rows_kept":10,"cut":false,"hidden":true,"merged":[]}
["Anna.Alyakritskaya@x5.ru"]
["Anastasia.Kraynova@x5.ru"]
["OlesyaS.Kiseleva@x5.ru"]
["S.Borovikova@x5.ru"]
["Elena.Ikonnikova@x5.ru"]
["Yulia.Litunovskaya@x5.ru"]
["Anastasiya.Rubleva@x5.ru"]
["Nina.Sapozhnikova@x5.ru"]
["Ang.Lobanova@x5.ru"]
["Mikhail.Darin@x5.ru"]

{"sheet":"Лист1","index":4,"n_rows":0,"n_cols":0,"rows_kept":0,"cut":false,"hidden":true,"merged":[]}

{"sheet":"Лист2","index":5,"n_rows":9,"n_cols":1,"rows_kept":9,"cut":false,"hidden":true,"merged":[]}
["Ответсвенный"]
["Pavel.Popkov@x5.ru"]
["R.Lokot@x5.ru"]
["Maryana.Lobodenko@x5.ru"]
["Ele.Makarova@x5.ru"]
["M.Shirokovskikh@x5.ru"]
["Evgeny.Galanskiy@x5.ru"]
["Bulat.Galiev@x5.ru"]
["An.Boykova@x5.ru"]

{"sheet":"Лист3","index":6,"n_rows":0,"n_cols":0,"rows_kept":0,"cut":false,"hidden":true,"merged":[]}